[Event "*** Titled Tuesday Blitz"]
[Site "Chess.com"]
[Date "2021.04.20"]
[Round "3"]
[White "maxip32"]
[Black "Vuk2000"]
[Result "1-0"]
[WhiteElo "2540"]
[BlackElo "2736"]
[TimeControl "180+1"]
[EndTime "10:27:34 PDT"]
[Termination "maxip32 won on time"]

1. e4 {[%clk 0:03:00.9]} 1... e6 {[%clk 0:03:00.2]} 2. d3 {[%clk 0:02:58.9]}
2... d5 {[%clk 0:03:00.6]} 3. Nd2 {[%clk 0:02:59.4]} 3... Nf6 {[%clk 0:03:01]}
4. Ngf3 {[%clk 0:02:59.5]} 4... c5 {[%clk 0:03:01.5]} 5. g3 {[%clk 0:02:59.6]}
5... Nc6 {[%clk 0:03:01.9]} 6. Bg2 {[%clk 0:03:00.1]} 6... Be7 {[%clk
0:03:02.5]} 7. O-O {[%clk 0:03:00.7]} 7... O-O {[%clk 0:03:03.1]} 8. Re1 {[%clk
0:03:01.3]} 8... b5 {[%clk 0:03:03.7]} 9. e5 {[%clk 0:03:01.6]} 9... Nd7 {[%clk
0:03:03.8]} 10. Nf1 {[%clk 0:03:02.3]} 10... a5 {[%clk 0:03:04]} 11. h4 {[%clk
0:03:02.3]} 11... Ba6 {[%clk 0:03:04.1]} 12. N1h2 {[%clk 0:03:01.7]} 12... b4
{[%clk 0:03:04.3]} 13. h5 {[%clk 0:03:00.6]} 13... h6 {[%clk 0:03:04.6]} 14. Ng4
{[%clk 0:03:00]} 14... Nd4 {[%clk 0:03:04.9]} 15. Nxd4 {[%clk 0:02:37.4]} 15...
cxd4 {[%clk 0:03:05.8]} 16. Nh2 {[%clk 0:02:37.7]} 16... Rc8 {[%clk 0:02:57.5]}
17. Qg4 {[%clk 0:02:32.3]} 17... Kh7 {[%clk 0:02:54.6]} 18. Re2 {[%clk
0:02:29.1]} 18... Qb6 {[%clk 0:02:42.7]} 19. Nf3 {[%clk 0:02:27.5]} 19... Bc5
{[%clk 0:02:42.5]} 20. Qf4 {[%clk 0:02:08.2]} 20... a4 {[%clk 0:02:15.4]} 21. g4
{[%clk 0:02:07.1]} 21... f6 {[%clk 0:02:15.5]} 22. Qg3 {[%clk 0:01:55.8]} 22...
Nxe5 {[%clk 0:02:00.9]} 23. Nxe5 {[%clk 0:01:55.4]} 23... fxe5 {[%clk
0:01:50.5]} 24. Qxe5 {[%clk 0:01:54.9]} 24... Rce8 {[%clk 0:01:45.6]} 25. Bf4
{[%clk 0:01:41.7]} 25... b3 {[%clk 0:01:18.9]} 26. axb3 {[%clk 0:01:37.2]} 26...
axb3 {[%clk 0:01:18.2]} 27. Qc7 {[%clk 0:01:17.5]} 27... bxc2 {[%clk 0:01:12.3]}
28. Rxc2 {[%clk 0:01:12.2]} 28... Rxf4 {[%clk 0:00:14.9]} 29. Qxf4 {[%clk
0:01:08.3]} 29... Bxd3 {[%clk 0:00:15.5]} 30. Rd2 {[%clk 0:01:02.1]} 30... Rf8
{[%clk 0:00:15.7]} 31. Qg3 {[%clk 0:00:46.2]} 31... Bb5 {[%clk 0:00:15.9]} 32.
g5 {[%clk 0:00:36.9]} 32... hxg5 {[%clk 0:00:05.8]} 33. Qxg5 {[%clk 0:00:33.8]}
33... Be8 {[%clk 0:00:06.4]} 34. Ra8 {[%clk 0:00:27.6]} 34... d3 {[%clk
0:00:05.6]} 35. Rxe8 {[%clk 0:00:21.3]} 35... Bxf2+ {[%clk 0:00:05.3]} 36. Kh1
{[%clk 0:00:20.3]} 36... Rf6 {[%clk 0:00:03.2]} 37. Re7 {[%clk 0:00:17.2]} 1-0

[Event "*** Titled Tuesday Blitz"]
[Site "Chess.com"]
[Date "2021.04.20"]
[Round "3"]
[White "sakkikuska"]
[Black "ZeZacarias"]
[Result "1-0"]
[WhiteElo "2478"]
[BlackElo "2140"]
[TimeControl "180+1"]
[EndTime "10:27:35 PDT"]
[Termination "sakkikuska won by resignation"]

1. e4 {[%clk 0:02:59.4]} 1... e6 {[%clk 0:02:59.5]} 2. d4 {[%clk 0:02:59.5]}
2... d5 {[%clk 0:02:58.5]} 3. Nc3 {[%clk 0:03:00.3]} 3... Nf6 {[%clk 0:02:56.1]}
4. e5 {[%clk 0:03:00.4]} 4... Nfd7 {[%clk 0:02:53.9]} 5. f4 {[%clk 0:03:00.9]}
5... c5 {[%clk 0:02:50.4]} 6. Nf3 {[%clk 0:03:01.6]} 6... a6 {[%clk 0:02:43.8]}
7. Be3 {[%clk 0:03:00.1]} 7... Qb6 {[%clk 0:02:37.9]} 8. a3 {[%clk 0:02:52.1]}
8... Nc6 {[%clk 0:02:35.1]} 9. Qd2 {[%clk 0:02:51.3]} 9... Qa7 {[%clk
0:02:24.4]} 10. Be2 {[%clk 0:02:48.3]} 10... cxd4 {[%clk 0:02:16.3]} 11. Nxd4
{[%clk 0:02:48.3]} 11... Bc5 {[%clk 0:02:12.8]} 12. Nxc6 {[%clk 0:02:47]} 12...
bxc6 {[%clk 0:01:51.4]} 13. Bxc5 {[%clk 0:02:46.3]} 13... Nxc5 {[%clk
0:01:50.1]} 14. Qd4 {[%clk 0:02:44.3]} 14... Nd7 {[%clk 0:01:46.9]} 15. Qxa7
{[%clk 0:02:44.2]} 15... Rxa7 {[%clk 0:01:47.2]} 16. Kf2 {[%clk 0:02:40.7]}
16... a5 {[%clk 0:01:43.4]} 17. Na4 {[%clk 0:02:39.7]} 17... Ba6 {[%clk
0:01:40.7]} 18. Bxa6 {[%clk 0:02:39.4]} 18... Rxa6 {[%clk 0:01:40.3]} 19. b3
{[%clk 0:02:38.7]} 19... Ke7 {[%clk 0:01:38.6]} 20. Rhd1 {[%clk 0:02:38.4]}
20... Rc8 {[%clk 0:01:35.8]} 21. Rac1 {[%clk 0:02:38.5]} 21... c5 {[%clk
0:01:29.8]} 22. c4 {[%clk 0:02:35.5]} 22... d4 {[%clk 0:01:29.5]} 23. Ke2 {[%clk
0:02:33.9]} 23... g6 {[%clk 0:01:28.7]} 24. Rb1 {[%clk 0:02:32.1]} 24... Rb8
{[%clk 0:01:24.8]} 25. Kd3 {[%clk 0:02:31.3]} 25... h5 {[%clk 0:01:24.3]} 26. h4
{[%clk 0:02:30.8]} 26... Ra7 {[%clk 0:01:23.9]} 27. g3 {[%clk 0:02:29.7]} 27...
Rab7 {[%clk 0:01:22.5]} 28. Kc2 {[%clk 0:02:29.2]} 28... Kd8 {[%clk 0:01:15.3]}
29. Rd3 {[%clk 0:02:21.9]} 29... Kc7 {[%clk 0:01:14.6]} 30. Nb2 {[%clk
0:02:14.7]} 30... Kc6 {[%clk 0:01:10.8]} 31. Nd1 {[%clk 0:02:14.4]} 31... Nb6
{[%clk 0:00:50.8]} 32. Nf2 {[%clk 0:02:11.7]} 32... a4 {[%clk 0:00:49.7]} 33.
Ne4 {[%clk 0:01:55.8]} 33... axb3+ {[%clk 0:00:47.9]} 34. Rdxb3 {[%clk
0:01:55.7]} 34... Nxc4 {[%clk 0:00:25.2]} 35. Rxb7 {[%clk 0:01:53.9]} 35...
Nxa3+ {[%clk 0:00:24.8]} 36. Kd3 {[%clk 0:01:51.3]} 36... Rxb7 {[%clk
0:00:13.6]} 37. Rxb7 {[%clk 0:01:52.2]} 37... c4+ {[%clk 0:00:12.1]} 38. Kxd4
{[%clk 0:01:51.4]} 38... Kxb7 {[%clk 0:00:13]} 39. Nd6+ {[%clk 0:01:51]} 39...
Kc6 {[%clk 0:00:10.8]} 40. Nxf7 {[%clk 0:01:49.1]} 40... Kb5 {[%clk 0:00:10.5]}
41. Nd8 {[%clk 0:01:45.4]} 41... Kb4 {[%clk 0:00:10.5]} 42. Nxe6 {[%clk
0:01:45.3]} 42... c3 {[%clk 0:00:10.8]} 43. Kd3 {[%clk 0:01:42.3]} 43... Kb3
{[%clk 0:00:09.7]} 44. Nd4+ {[%clk 0:01:42.2]} 44... Kb2 {[%clk 0:00:09.9]} 45.
e6 {[%clk 0:01:41]} 45... Nb5 {[%clk 0:00:08.9]} 46. Nxb5 {[%clk 0:01:33]} 46...
c2 {[%clk 0:00:08.7]} 47. e7 {[%clk 0:01:33.3]} 47... c1=Q {[%clk 0:00:08.4]}
48. e8=Q {[%clk 0:01:34.2]} 48... Qd1+ {[%clk 0:00:08.1]} 49. Kc4 {[%clk
0:01:33.8]} 49... Qb3+ {[%clk 0:00:08]} 50. Kc5 {[%clk 0:01:33.9]} 50... Qc2+
{[%clk 0:00:06.9]} 51. Kb6 {[%clk 0:01:33.9]} 51... Qf2+ {[%clk 0:00:06.7]} 52.
Ka6 {[%clk 0:01:33.9]} 52... Qxg3 {[%clk 0:00:06.8]} 53. Qe2+ {[%clk 0:01:33.9]}
53... Kb3 {[%clk 0:00:06.4]} 54. Qe6+ {[%clk 0:01:30.9]} 54... Kb2 {[%clk
0:00:05.8]} 55. Qf6+ {[%clk 0:01:30.4]} 55... Kb3 {[%clk 0:00:05.9]} 56. Nd4+
{[%clk 0:01:30.5]} 56... Kc4 {[%clk 0:00:05.8]} 57. Nb5 {[%clk 0:01:27.1]} 57...
Qxh4 {[%clk 0:00:04.2]} 58. Qxh4 {[%clk 0:01:26.6]} 1-0

[Event "*** Titled Tuesday Blitz"]
[Site "Chess.com"]
[Date "2021.04.20"]
[Round "3"]
[White "fastestmindalive"]
[Black "Sashadav97"]
[Result "1-0"]
[WhiteElo "2766"]
[BlackElo "2608"]
[TimeControl "180+1"]
[EndTime "10:27:36 PDT"]
[Termination "fastestmindalive won by resignation"]

1. e4 {[%clk 0:03:00.9]} 1... c5 {[%clk 0:02:54]} 2. Nc3 {[%clk 0:03:00.3]} 2...
e6 {[%clk 0:02:53.5]} 3. f4 {[%clk 0:02:59]} 3... Nc6 {[%clk 0:02:50.6]} 4. Nf3
{[%clk 0:02:59]} 4... d5 {[%clk 0:02:51.1]} 5. Bb5 {[%clk 0:02:58.5]} 5... Ne7
{[%clk 0:02:49.9]} 6. exd5 {[%clk 0:02:58.1]} 6... exd5 {[%clk 0:02:49.4]} 7.
Qe2 {[%clk 0:02:58.5]} 7... f6 {[%clk 0:02:49.5]} 8. Bxc6+ {[%clk 0:02:57.7]}
8... bxc6 {[%clk 0:02:49.2]} 9. d3 {[%clk 0:02:58.6]} 9... Kf7 {[%clk
0:02:47.9]} 10. O-O {[%clk 0:02:58.8]} 10... Nf5 {[%clk 0:02:41.3]} 11. b3
{[%clk 0:02:57]} 11... Bd6 {[%clk 0:02:39.8]} 12. Qf2 {[%clk 0:02:55.9]} 12...
Re8 {[%clk 0:02:30.3]} 13. Na4 {[%clk 0:02:55.3]} 13... d4 {[%clk 0:02:21.4]}
14. Nb2 {[%clk 0:02:51.3]} 14... Ne3 {[%clk 0:02:20]} 15. Bxe3 {[%clk
0:02:50.2]} 15... dxe3 {[%clk 0:02:07.3]} 16. Qh4 {[%clk 0:02:49.3]} 16... Kg8
{[%clk 0:01:59.5]} 17. Nc4 {[%clk 0:02:45.7]} 17... Ba6 {[%clk 0:01:58.5]} 18.
Nxd6 {[%clk 0:02:38.7]} 18... Qxd6 {[%clk 0:01:59.4]} 19. Rae1 {[%clk 0:02:33]}
19... Re7 {[%clk 0:01:57.6]} 20. Re2 {[%clk 0:02:23.9]} 20... Rae8 {[%clk
0:01:57.5]} 21. Rfe1 {[%clk 0:02:19.1]} 21... c4 {[%clk 0:01:40.3]} 22. bxc4
{[%clk 0:01:54]} 22... c5 {[%clk 0:01:39.7]} 23. Qg3 {[%clk 0:01:53.5]} 23...
Bc8 {[%clk 0:01:35]} 24. Kh1 {[%clk 0:00:59.2]} 24... g6 {[%clk 0:01:14.4]} 25.
h3 {[%clk 0:00:58.1]} 25... Kf7 {[%clk 0:01:11]} 26. Nh2 {[%clk 0:00:57.1]}
26... Qd4 {[%clk 0:01:09.1]} 27. Nf1 {[%clk 0:00:56.5]} 27... Qb2 {[%clk
0:00:53.6]} 28. Rxe3 {[%clk 0:00:36.7]} 28... Rxe3 {[%clk 0:00:17.6]} 29. Rxe3
{[%clk 0:00:37.6]} 29... Qxc2 {[%clk 0:00:17.4]} 30. Rxe8 {[%clk 0:00:36.5]}
30... Kxe8 {[%clk 0:00:18.3]} 31. Qe3+ {[%clk 0:00:36.2]} 31... Kd8 {[%clk
0:00:17.1]} 32. Qxc5 {[%clk 0:00:33.4]} 32... Qxd3 {[%clk 0:00:12.6]} 33. Ne3
{[%clk 0:00:31.3]} 33... Be6 {[%clk 0:00:06]} 34. Qxa7 {[%clk 0:00:25.8]} 34...
Qe4 {[%clk 0:00:06.1]} 35. Qb6+ {[%clk 0:00:22.4]} 35... Kd7 {[%clk 0:00:05.2]}
36. Qb5+ {[%clk 0:00:18.4]} 36... Kd8 {[%clk 0:00:04.9]} 37. Nd5 {[%clk
0:00:13.7]} 37... Bxd5 {[%clk 0:00:01.5]} 1-0

[Event "*** Titled Tuesday Blitz"]
[Site "Chess.com"]
[Date "2021.04.20"]
[Round "3"]
[White "BvsN"]
[Black "MMSANCHEZ"]
[Result "0-1"]
[WhiteElo "2361"]
[BlackElo "2559"]
[TimeControl "180+1"]
[EndTime "10:27:36 PDT"]
[Termination "MMSANCHEZ won on time"]

1. c4 {[%clk 0:03:00.9]} 1... e5 {[%clk 0:02:56.9]} 2. Nc3 {[%clk 0:03:00.8]}
2... Nf6 {[%clk 0:02:55.8]} 3. Nf3 {[%clk 0:03:01]} 3... Nc6 {[%clk 0:02:55.9]}
4. e3 {[%clk 0:03:01.1]} 4... Bb4 {[%clk 0:02:51.7]} 5. Qc2 {[%clk 0:03:00.8]}
5... O-O {[%clk 0:02:51]} 6. Nd5 {[%clk 0:03:01]} 6... Be7 {[%clk 0:02:50.2]} 7.
a3 {[%clk 0:03:00.5]} 7... a5 {[%clk 0:02:49.8]} 8. Bd3 {[%clk 0:02:56.8]} 8...
h6 {[%clk 0:02:46.5]} 9. O-O {[%clk 0:02:54.1]} 9... d6 {[%clk 0:02:46.3]} 10.
b3 {[%clk 0:02:51.3]} 10... Bg4 {[%clk 0:02:43.5]} 11. Bb2 {[%clk 0:02:47.1]}
11... Bxf3 {[%clk 0:02:34.9]} 12. gxf3 {[%clk 0:02:47.2]} 12... Qd7 {[%clk
0:02:29.3]} 13. Bf5 {[%clk 0:02:42.4]} 13... Qd8 {[%clk 0:02:24.3]} 14. Kh1
{[%clk 0:02:41.6]} 14... Nxd5 {[%clk 0:01:58.1]} 15. cxd5 {[%clk 0:02:41.4]}
15... Nb8 {[%clk 0:01:58.6]} 16. Rg1 {[%clk 0:02:35.1]} 16... Bf6 {[%clk
0:01:55.3]} 17. Rg3 {[%clk 0:02:28.5]} 17... c6 {[%clk 0:01:53.5]} 18. Be4
{[%clk 0:02:16.4]} 18... cxd5 {[%clk 0:01:34.8]} 19. Bxd5 {[%clk 0:02:16.4]}
19... Kh8 {[%clk 0:01:29.2]} 20. Rc1 {[%clk 0:02:00.1]} 20... Nc6 {[%clk
0:01:26.7]} 21. Qe4 {[%clk 0:01:47.5]} 21... Ne7 {[%clk 0:01:23.5]} 22. Rcg1
{[%clk 0:01:33.4]} 22... Nxd5 {[%clk 0:01:18.9]} 23. Qxd5 {[%clk 0:01:33.7]}
23... Rc8 {[%clk 0:01:17.5]} 24. Bc3 {[%clk 0:01:33.8]} 24... Rc5 {[%clk
0:01:15.1]} 25. Qxb7 {[%clk 0:01:07.3]} 25... d5 {[%clk 0:01:15]} 26. f4 {[%clk
0:01:02.1]} 26... d4 {[%clk 0:00:43]} 27. fxe5 {[%clk 0:00:50.9]} 27... dxc3
{[%clk 0:00:42.9]} 28. exf6 {[%clk 0:00:47.6]} 28... Qxf6 {[%clk 0:00:42.8]} 29.
dxc3 {[%clk 0:00:41.3]} 29... Rxc3 {[%clk 0:00:41.6]} 30. Qg2 {[%clk 0:00:30.1]}
30... g6 {[%clk 0:00:38.6]} 31. Rh3 {[%clk 0:00:22.4]} 31... Kh7 {[%clk
0:00:35.1]} 32. Qd5 {[%clk 0:00:14.9]} 32... Qe6 {[%clk 0:00:19.4]} 33. Qd4
{[%clk 0:00:08.9]} 33... Rxb3 {[%clk 0:00:17.7]} 34. Qf4 {[%clk 0:00:07.6]}
34... h5 {[%clk 0:00:16.7]} 35. Rhg3 {[%clk 0:00:05.6]} 35... Qc6+ {[%clk
0:00:14.2]} 36. e4 {[%clk 0:00:04.7]} 36... Rxg3 {[%clk 0:00:13.4]} 37. hxg3
{[%clk 0:00:04.5]} 37... Qe6 {[%clk 0:00:13.5]} 38. Kg2 {[%clk 0:00:03.3]} 38...
Re8 {[%clk 0:00:14]} 39. Re1 {[%clk 0:00:03.4]} 39... Kg7 {[%clk 0:00:14.4]} 40.
f3 {[%clk 0:00:03.8]} 40... Rd8 {[%clk 0:00:14]} 41. Re2 {[%clk 0:00:02.3]}
41... Rd3 {[%clk 0:00:14]} 42. Kg1 {[%clk 0:00:01.5]} 42... Rxa3 {[%clk
0:00:13.8]} 0-1

[Event "*** Titled Tuesday Blitz"]
[Site "Chess.com"]
[Date "2021.04.20"]
[Round "3"]
[White "GUST_b"]
[Black "ErikBlomqvist"]
[Result "0-1"]
[WhiteElo "2373"]
[BlackElo "2585"]
[TimeControl "180+1"]
[EndTime "10:27:37 PDT"]
[Termination "ErikBlomqvist won by checkmate"]

1. Nf3 {[%clk 0:03:00.9]} 1... c5 {[%clk 0:02:57.4]} 2. c4 {[%clk 0:02:59.6]}
2... Nf6 {[%clk 0:02:54.7]} 3. Nc3 {[%clk 0:03:00.1]} 3... e6 {[%clk 0:02:54.2]}
4. e3 {[%clk 0:02:59.2]} 4... a6 {[%clk 0:02:54.5]} 5. d4 {[%clk 0:02:59.4]}
5... cxd4 {[%clk 0:02:55.4]} 6. exd4 {[%clk 0:02:59.5]} 6... d5 {[%clk 0:02:52]}
7. a3 {[%clk 0:02:58.1]} 7... dxc4 {[%clk 0:02:40.8]} 8. Bxc4 {[%clk 0:02:57.8]}
8... b5 {[%clk 0:02:41]} 9. Ba2 {[%clk 0:02:55.8]} 9... Bb7 {[%clk 0:02:41]} 10.
O-O {[%clk 0:02:55.3]} 10... Be7 {[%clk 0:02:41.1]} 11. Bg5 {[%clk 0:02:55.3]}
11... Nbd7 {[%clk 0:02:39.1]} 12. Qd3 {[%clk 0:02:46.9]} 12... O-O {[%clk
0:02:25.3]} 13. Rad1 {[%clk 0:02:46.3]} 13... Nb6 {[%clk 0:01:31.6]} 14. Bb1
{[%clk 0:02:42.6]} 14... g6 {[%clk 0:01:27.6]} 15. Bh6 {[%clk 0:02:38.1]} 15...
Re8 {[%clk 0:01:26]} 16. Ne5 {[%clk 0:02:38.1]} 16... Rc8 {[%clk 0:01:14.2]} 17.
Qg3 {[%clk 0:02:35]} 17... Nh5 {[%clk 0:00:48.6]} 18. Qh3 {[%clk 0:02:35]} 18...
Bg5 {[%clk 0:00:45]} 19. Bxg5 {[%clk 0:02:15.8]} 19... Qxg5 {[%clk 0:00:45.9]}
20. Ne4 {[%clk 0:02:12.3]} 20... Bxe4 {[%clk 0:00:40.2]} 21. Bxe4 {[%clk
0:02:13.2]} 21... Nf4 {[%clk 0:00:36.7]} 22. Qf3 {[%clk 0:02:10.1]} 22... f6
{[%clk 0:00:30.4]} 23. Nd3 {[%clk 0:01:51.1]} 23... Nxd3 {[%clk 0:00:25.3]} 24.
Bxd3 {[%clk 0:01:48.6]} 24... Nd5 {[%clk 0:00:23.5]} 25. Be4 {[%clk 0:01:46.7]}
25... Kg7 {[%clk 0:00:14.9]} 26. Bxd5 {[%clk 0:01:44.5]} 26... Qxd5 {[%clk
0:00:15.5]} 27. Qxd5 {[%clk 0:01:40.9]} 27... exd5 {[%clk 0:00:16.4]} 28. Rd2
{[%clk 0:01:40.5]} 28... Rc4 {[%clk 0:00:09.5]} 29. f3 {[%clk 0:01:39.6]} 29...
Rec8 {[%clk 0:00:09.5]} 30. Kf2 {[%clk 0:01:39.9]} 30... Rc2 {[%clk 0:00:08.4]}
31. Rd1 {[%clk 0:01:39.8]} 31... Kf7 {[%clk 0:00:08.3]} 32. Ke3 {[%clk
0:01:37.9]} 32... a5 {[%clk 0:00:08.5]} 33. Kd3 {[%clk 0:01:38]} 33... R2c4
{[%clk 0:00:08.2]} 34. Re1 {[%clk 0:01:37.9]} 34... a4 {[%clk 0:00:08]} 35. Rde2
{[%clk 0:01:38]} 35... R8c7 {[%clk 0:00:08.5]} 36. Re8 {[%clk 0:01:36.2]} 36...
Rc2 {[%clk 0:00:08.6]} 37. R1e7+ {[%clk 0:01:11.6]} 37... Rxe7 {[%clk
0:00:08.7]} 38. Rxe7+ {[%clk 0:01:12.5]} 38... Kxe7 {[%clk 0:00:09.3]} 39. Kxc2
{[%clk 0:01:13.4]} 39... Kd6 {[%clk 0:00:08.5]} 40. Kc3 {[%clk 0:01:13.9]} 40...
Kc6 {[%clk 0:00:08.7]} 41. Kb4 {[%clk 0:01:13.8]} 41... Kb6 {[%clk 0:00:09.2]}
42. g3 {[%clk 0:01:14.2]} 42... f5 {[%clk 0:00:03.2]} 43. f4 {[%clk 0:01:14.3]}
43... h6 {[%clk 0:00:03.8]} 44. h3 {[%clk 0:01:05.5]} 44... g5 {[%clk
0:00:04.3]} 45. fxg5 {[%clk 0:00:53.1]} 45... hxg5 {[%clk 0:00:05.2]} 46. h4
{[%clk 0:00:50.2]} 46... f4 {[%clk 0:00:05.5]} 47. h5 {[%clk 0:00:34.1]} 47...
fxg3 {[%clk 0:00:04.7]} 48. h6 {[%clk 0:00:35]} 48... g2 {[%clk 0:00:05.3]} 49.
h7 {[%clk 0:00:35.9]} 49... g1=Q {[%clk 0:00:05.5]} 50. h8=Q {[%clk 0:00:36.8]}
50... Qe1# {[%clk 0:00:05.8]} 0-1

[Event "*** Titled Tuesday Blitz"]
[Site "Chess.com"]
[Date "2021.04.20"]
[Round "3"]
[White "volunteers1998"]
[Black "woodhy"]
[Result "0-1"]
[WhiteElo "2182"]
[BlackElo "2481"]
[TimeControl "180+1"]
[EndTime "10:27:37 PDT"]
[Termination "woodhy won by resignation"]

1. e4 {[%clk 0:03:00.9]} 1... e6 {[%clk 0:02:39]} 2. Nf3 {[%clk 0:02:58.9]} 2...
d5 {[%clk 0:02:36.8]} 3. Nc3 {[%clk 0:02:58.8]} 3... Nf6 {[%clk 0:02:35.1]} 4.
e5 {[%clk 0:02:57.4]} 4... Nfd7 {[%clk 0:02:35]} 5. d4 {[%clk 0:02:55.9]} 5...
c5 {[%clk 0:02:35.2]} 6. dxc5 {[%clk 0:02:53.3]} 6... Nc6 {[%clk 0:02:35.2]} 7.
Bf4 {[%clk 0:02:48.6]} 7... Bxc5 {[%clk 0:02:35.2]} 8. Bd3 {[%clk 0:02:45.6]}
8... f6 {[%clk 0:02:28.5]} 9. exf6 {[%clk 0:02:42.7]} 9... Qxf6 {[%clk
0:02:29.4]} 10. Bg3 {[%clk 0:02:39.5]} 10... O-O {[%clk 0:02:27.7]} 11. O-O
{[%clk 0:02:36.6]} 11... Nd4 {[%clk 0:02:15.9]} 12. Nxd4 {[%clk 0:02:33.3]}
12... Bxd4 {[%clk 0:02:16.7]} 13. Qe2 {[%clk 0:02:25.8]} 13... Nc5 {[%clk
0:02:00.9]} 14. Rad1 {[%clk 0:02:16.5]} 14... Bd7 {[%clk 0:01:29.6]} 15. Rd2
{[%clk 0:02:09.1]} 15... Rae8 {[%clk 0:01:26.8]} 16. Rfd1 {[%clk 0:02:03.3]}
16... Bxc3 {[%clk 0:01:18.8]} 17. bxc3 {[%clk 0:02:01.2]} 17... e5 {[%clk
0:01:17.8]} 18. Bb5 {[%clk 0:01:52.6]} 18... Bc6 {[%clk 0:01:11.9]} 19. c4
{[%clk 0:01:36.2]} 19... Ne4 {[%clk 0:01:07.3]} 20. cxd5 {[%clk 0:01:31.8]}
20... Nxd2 {[%clk 0:01:05.6]} 21. dxc6 {[%clk 0:01:23.6]} 21... bxc6 {[%clk
0:01:06.5]} 22. Bd3 {[%clk 0:01:06.7]} 22... e4 {[%clk 0:00:57.6]} 23. Qxd2
{[%clk 0:01:07.1]} 23... exd3 {[%clk 0:00:55.4]} 24. cxd3 {[%clk 0:01:06.6]}
24... Qd4 {[%clk 0:00:52.4]} 25. h3 {[%clk 0:01:00.4]} 25... Kh8 {[%clk
0:00:51]} 26. Rc1 {[%clk 0:00:55.5]} 26... Re6 {[%clk 0:00:50.1]} 27. Rc4 {[%clk
0:00:51.1]} 27... Qb6 {[%clk 0:00:40.4]} 28. Kh2 {[%clk 0:00:47.5]} 28... Rfe8
{[%clk 0:00:38.9]} 29. Qc3 {[%clk 0:00:44.2]} 29... Qb5 {[%clk 0:00:32.3]} 30.
d4 {[%clk 0:00:37.2]} 30... h6 {[%clk 0:00:31.8]} 31. Be5 {[%clk 0:00:25.5]}
31... Qd5 {[%clk 0:00:30.4]} 32. Rc5 {[%clk 0:00:19.4]} 32... Qe4 {[%clk
0:00:28.2]} 33. Qg3 {[%clk 0:00:17.8]} 33... Rg6 {[%clk 0:00:28.2]} 34. Qf3
{[%clk 0:00:16.2]} 34... Qxf3 {[%clk 0:00:28.4]} 35. gxf3 {[%clk 0:00:16.5]}
35... Rf8 {[%clk 0:00:29.3]} 36. f4 {[%clk 0:00:16]} 36... Kg8 {[%clk
0:00:29.7]} 37. Ra5 {[%clk 0:00:13.3]} 37... Rf7 {[%clk 0:00:30]} 38. Ra3 {[%clk
0:00:12.2]} 38... Rb7 {[%clk 0:00:29.7]} 39. Rg3 {[%clk 0:00:09.8]} 39... Rxg3
{[%clk 0:00:28.8]} 40. fxg3 {[%clk 0:00:09.8]} 40... Rb2+ {[%clk 0:00:28.3]} 41.
Kg1 {[%clk 0:00:10.3]} 41... Rxa2 {[%clk 0:00:29.2]} 42. Bd6 {[%clk 0:00:09.2]}
42... Rd2 {[%clk 0:00:28.4]} 43. Bc5 {[%clk 0:00:08]} 43... a5 {[%clk
0:00:28.7]} 44. Kf1 {[%clk 0:00:08.2]} 44... a4 {[%clk 0:00:29.1]} 45. Ke1
{[%clk 0:00:08.6]} 45... Rd3 {[%clk 0:00:29.4]} 46. Ke2 {[%clk 0:00:08.2]} 46...
Rxg3 {[%clk 0:00:29.5]} 47. f5 {[%clk 0:00:07.3]} 47... Rxh3 {[%clk 0:00:29.5]}
0-1

[Event "*** Titled Tuesday Blitz"]
[Site "Chess.com"]
[Date "2021.04.20"]
[Round "3"]
[White "eljanov"]
[Black "NateSolon"]
[Result "1-0"]
[WhiteElo "2882"]
[BlackElo "2638"]
[TimeControl "180+1"]
[EndTime "10:27:41 PDT"]
[Termination "eljanov won on time"]

1. d4 {[%clk 0:03:00.9]} 1... Nf6 {[%clk 0:02:59.6]} 2. Nf3 {[%clk 0:03:00.5]}
2... d5 {[%clk 0:02:58.9]} 3. Bf4 {[%clk 0:03:00.4]} 3... e6 {[%clk 0:02:56.3]}
4. e3 {[%clk 0:03:00.7]} 4... Bd6 {[%clk 0:02:56]} 5. Ne5 {[%clk 0:03:01]} 5...
O-O {[%clk 0:02:50.8]} 6. Nd2 {[%clk 0:03:00.3]} 6... c5 {[%clk 0:02:48.2]} 7.
c3 {[%clk 0:02:55.5]} 7... Qc7 {[%clk 0:02:42.8]} 8. Bd3 {[%clk 0:02:55.7]} 8...
Nc6 {[%clk 0:02:40.3]} 9. Ndf3 {[%clk 0:02:55]} 9... b6 {[%clk 0:02:36]} 10. h4
{[%clk 0:02:47.2]} 10... Bb7 {[%clk 0:02:30.3]} 11. h5 {[%clk 0:02:45.6]} 11...
Ne4 {[%clk 0:02:18.5]} 12. h6 {[%clk 0:02:42.9]} 12... g6 {[%clk 0:02:17.5]} 13.
Nxc6 {[%clk 0:02:32.8]} 13... Bxc6 {[%clk 0:02:06.6]} 14. Bxd6 {[%clk
0:02:32.7]} 14... Qxd6 {[%clk 0:02:07.5]} 15. Ne5 {[%clk 0:02:31.3]} 15... f6
{[%clk 0:01:57.1]} 16. Nxc6 {[%clk 0:02:24.3]} 16... Qxc6 {[%clk 0:01:58]} 17.
Qe2 {[%clk 0:02:18.7]} 17... Nd6 {[%clk 0:01:51]} 18. Qg4 {[%clk 0:02:06.9]}
18... Kf7 {[%clk 0:01:19.2]} 19. Rh3 {[%clk 0:02:03.6]} 19... cxd4 {[%clk
0:00:52.5]} 20. exd4 {[%clk 0:02:03]} 20... b5 {[%clk 0:00:50.4]} 21. Kf1 {[%clk
0:01:58.1]} 21... Rab8 {[%clk 0:00:46.2]} 22. Re1 {[%clk 0:01:56.4]} 22... Nc4
{[%clk 0:00:39.6]} 23. Qe2 {[%clk 0:01:26.8]} 23... Rfe8 {[%clk 0:00:26.5]} 24.
Rf3 {[%clk 0:01:19.3]} 24... Qd6 {[%clk 0:00:20.5]} 25. b3 {[%clk 0:01:15.6]}
25... Na3 {[%clk 0:00:19]} 26. g3 {[%clk 0:01:04.5]} 26... b4 {[%clk 0:00:18.7]}
27. cxb4 {[%clk 0:00:42.7]} 27... Rxb4 {[%clk 0:00:17.5]} 28. Qb2 {[%clk
0:00:40.9]} 28... Rb6 {[%clk 0:00:15]} 29. Rc1 {[%clk 0:00:39.5]} 29... f5
{[%clk 0:00:13.7]} 30. Re3 {[%clk 0:00:38]} 30... Nb5 {[%clk 0:00:13.4]} 31. Re2
{[%clk 0:00:34.1]} 31... Re7 {[%clk 0:00:09.9]} 32. Rec2 {[%clk 0:00:33.4]}
32... Qa3 {[%clk 0:00:08.2]} 33. Qxa3 {[%clk 0:00:27.6]} 33... Nxa3 {[%clk
0:00:09.1]} 34. Rc5 {[%clk 0:00:28.2]} 34... a6 {[%clk 0:00:07.6]} 35. Rc6
{[%clk 0:00:27.4]} 35... Reb7 {[%clk 0:00:07]} 36. Rc7+ {[%clk 0:00:27.2]} 36...
Kf6 {[%clk 0:00:06.9]} 37. Rxb7 {[%clk 0:00:25.9]} 37... Rxb7 {[%clk 0:00:07.8]}
38. Bxa6 {[%clk 0:00:26.4]} 38... Rb4 {[%clk 0:00:08.1]} 39. Rc7 {[%clk
0:00:25]} 39... Kg5 {[%clk 0:00:07.6]} 40. Rxh7 {[%clk 0:00:24.8]} 40... Rxd4
{[%clk 0:00:07.9]} 41. Be2 {[%clk 0:00:22.9]} 41... Rd2 {[%clk 0:00:06.9]} 42.
f4+ {[%clk 0:00:22.8]} 42... Kf6 {[%clk 0:00:05.9]} 43. Ra7 {[%clk 0:00:23.2]}
43... Rxa2 {[%clk 0:00:04.8]} 44. h7 {[%clk 0:00:23.2]} 44... Ra1+ {[%clk
0:00:03.8]} 45. Kg2 {[%clk 0:00:22.8]} 1-0